[Event "FIDE World Cadets GU10 2022"]
[Site "Batumi"]
[Date "2022.09.17"]
[Round "2.28"]
[White "Chovanec, Alice"]
[Black "Zavivaeva, Kristina"]
[Result "0-1"]
[ECO "A57"]
[WhiteElo "1414"]
[BlackElo "1222"]
[Annotator "NA COMBH"]
[PlyCount "90"]
[EventDate "2022.09.16"]
[EventType "swiss"]
[EventCountry "GEO"]
[SourceTitle "playchess.com"]
[Source "ChessBase"]
[SourceQuality "1"]
[TimeControl "5400+30"]

1. d4 {[%emt 0:01:00]} Nf6 {[%emt 0:01:00]} 2. c4 {[%emt 0:00:30]} c5 {[%emt 0:00:30]} 3. d5 {[%emt 0:00:00]} b5 {[%emt 0:00:30]} 4. cxb5 {[%emt 0:00:00]} a6 {[%emt 0:00:30]} 5. e3 {[%emt 0:00:00]} g6 {[%emt 0:02:30]} 6. Nc3 {[%emt 0:00:00]} Bg7 {[%emt 0:00:00]} 7. Nf3 {[%emt 0:00:30]} Bb7 {[%emt 0:02:00]} 8. a4 {[%emt 0:01:30]} O-O {[%emt 0:02:30]} 9. e4 {[%emt 0:00:30]} d6 {[%emt 0:00:30]} 10. Bd2 {[%emt 0:00:30]} axb5 {[%emt 0:11:30]} 11. Bxb5 {[%emt 0:01:30]} Nbd7 {[%emt 0:04:30]} 12. O-O {[%emt 0:00:30]} Qc7 {[%emt 0:02:30]} 13. Re1 {[%emt 0:03:30]} Rfb8 {[%emt 0:02:30]} 14. Qc1 {[%emt 0:01:30]} Ng4 {[%emt 0:05:30]} 15. h3 {[%emt 0:02:30]} Nge5 {[%emt 0:00:30]} 16. Nxe5 {[%emt 0:01:30]} Nxe5 {[%emt 0:00:30]} 17. f4 {[%emt 0:02:30]} Nd7 {[%emt 0:00:30]} 18. Qc2 {[%emt 0:03:30]} Nf6 {[%emt 0:03:30]} 19. Qd3 {[%emt 0:08:30]} Qb6 {[%emt 0:01:30]} 20. Kh1 {[%emt 0:02:30]} Nh5 {[%emt 0:01:30]} 21. Ra2 {[%emt 0:05:30]} Bh6 {[%emt 0:02:30]} 22. Qf3 {[%emt 0:09:30]} Bg7 {[%emt 0:05:30]} 23. Rea1 {[%emt 0:02:30]} Qc7 {[%emt 0:02:30]} 24. Qd3 {[%emt 0:03:30]} Qc8 {[%emt 0:04:30]} 25. Kh2 {[%emt 0:04:30]} Ba6 {[%emt 0:01:30]} 26. Bxa6 {[%emt 0:01:30]} Rxa6 {[%emt 0:00:30]} 27. Nb5 {[%emt 0:04:30]} Raa8 {[%emt 0:01:30]} 28. Qc4 {[%emt 0:02:30]} Qd7 {[%emt 0:00:30]} 29. g4 {[%emt 0:02:30]} Nf6 {[%emt 0:00:30]} 30. Bc3 {[%emt 0:00:30]} Rb6 {[%emt 0:01:30]} 31. Rd1 {[%emt 0:02:30]} Nxe4 {[%emt 0:12:30]} 32. Qxe4 {[%emt 0:01:30]} Rxb5 {[%emt 0:00:00]} 33. Qc4 {[%emt 0:03:30]} Rb7 {[%emt 0:01:00]} 34. Bxg7 {[%emt 0:02:30]} Kxg7 {[%emt 0:00:30]} 35. Qc3+ {[%emt 0:00:00]} Kg8 {[%emt 0:00:00]} 36. b3 {[%emt 0:01:00]} Rb4 {[%emt 0:01:00]} 37. Rf2 {[%emt 0:01:30]} Rab8 {[%emt 0:00:00]} 38. f5 {[%emt 0:01:30]} Rxb3 {[%emt 0:02:00]} 39. Qa1 {[%emt 0:02:30]} R8b4 {[%emt 0:02:30]} 40. fxg6 {[%emt 0:00:30]} hxg6 {[%emt 0:00:30]} 41. Rdf1 {[%emt 0:03:30]} Qxa4 {[%emt 0:04:30]} 42. Qe1 {[%emt 0:01:30]} Qa3 {[%emt 0:02:49]} 43. Rxf7 {[%emt 0:05:01]} Rxh3+ {[%emt 0:01:00]} 44. Kg1 {[%emt 0:00:28]} Rxg4+ {[%emt 0:00:26]} 45. Kf2 {[%emt 0:00:27]} Rh2# {[%emt 0:00:26]} 0-1

[Event "FIDE World Cadets GU10 2022"]
[Site "Batumi"]
[Date "2022.09.17"]
[Round "2.29"]
[White "Bajyrly, Dilara"]
[Black "Ejsymont, Blanka"]
[Result "0-1"]
[ECO "A46"]
[WhiteElo "1204"]
[BlackElo "1410"]
[Annotator "NA COMBH"]
[PlyCount "130"]
[EventDate "2022.09.16"]
[EventType "swiss"]
[EventCountry "GEO"]
[SourceTitle "playchess.com"]
[Source "ChessBase"]
[SourceQuality "1"]
[TimeControl "5400+30"]

1. d4 {[%emt 0:01:00]} Nf6 {[%emt 0:01:00]} 2. Bf4 {[%emt 0:00:30]} e6 {[%emt 0:00:30]} 3. e3 {[%emt 0:00:30]} c5 {[%emt 0:00:30]} 4. c3 {[%emt 0:00:30]} cxd4 {[%emt 0:00:30]} 5. exd4 {[%emt 0:00:30]} b6 {[%emt 0:00:00]} 6. Nd2 {[%emt 0:00:00]} Be7 {[%emt 0:00:00]} 7. Ngf3 {[%emt 0:00:00]} O-O {[%emt 0:00:00]} 8. Bd3 {[%emt 0:00:00]} Ba6 {[%emt 0:00:00]} 9. Bxa6 {[%emt 0:01:00]} Nxa6 {[%emt 0:00:00]} 10. O-O {[%emt 0:00:30]} d6 {[%emt 0:00:00]} 11. h3 {[%emt 0:00:30]} Nc7 {[%emt 0:00:00]} 12. Re1 {[%emt 0:01:30]} Qd7 {[%emt 0:01:00]} 13. Ne4 {[%emt 0:05:30]} Nxe4 {[%emt 0:03:30]} 14. Rxe4 {[%emt 0:00:30]} Qc6 {[%emt 0:00:30]} 15. Re2 {[%emt 0:03:30]} Nd5 {[%emt 0:00:30]} 16. Bg3 {[%emt 0:00:30]} a6 {[%emt 0:01:30]} 17. Rc1 {[%emt 0:00:30]} b5 {[%emt 0:00:30]} 18. Qd2 {[%emt 0:04:30]} Rfc8 {[%emt 0:03:30]} 19. Kh2 {[%emt 0:05:30]} Nb6 {[%emt 0:11:30]} 20. b3 {[%emt 0:02:30]} a5 {[%emt 0:02:30]} 21. c4 {[%emt 0:01:30]} bxc4 {[%emt 0:06:30]} 22. bxc4 {[%emt 0:00:30]} Qa4 {[%emt 0:05:30]} 23. d5 {[%emt 0:05:30]} Nxc4 {[%emt 0:04:30]} 24. Qd4 {[%emt 0:00:30]} e5 {[%emt 0:01:30]} 25. Qg4 {[%emt 0:01:30]} Nb6 {[%emt 0:00:30]} 26. Rxc8+ {[%emt 0:01:30]} Rxc8 {[%emt 0:00:30]} 27. Rd2 {[%emt 0:02:30]} Qxg4 {[%emt 0:01:30]} 28. hxg4 {[%emt 0:00:30]} Rc5 {[%emt 0:00:00]} 29. Rb2 {[%emt 0:01:30]} Nxd5 {[%emt 0:02:00]} 30. Rb8+ {[%emt 0:01:30]} Bf8 {[%emt 0:00:30]} 31. Ng5 {[%emt 0:01:30]} Nf6 {[%emt 0:07:30]} 32. f3 {[%emt 0:01:30]} h6 {[%emt 0:03:30]} 33. Ne4 {[%emt 0:01:30]} Nxe4 {[%emt 0:00:30]} 34. fxe4 {[%emt 0:00:30]} Rc2 {[%emt 0:00:30]} 35. a3 {[%emt 0:01:30]} Rc3 {[%emt 0:00:30]} 36. Be1 {[%emt 0:00:30]} Rxa3 {[%emt 0:00:30]} 37. Ra8 {[%emt 0:00:30]} f6 {[%emt 0:02:30]} 38. Rxa5 {[%emt 0:03:30]} Re3 {[%emt 0:02:30]} 39. Bf2 {[%emt 0:00:30]} Rxe4 {[%emt 0:01:30]} 40. Kg3 {[%emt 0:00:30]} Rc4 {[%emt 0:01:30]} 41. Rd5 {[%emt 0:02:30]} Kf7 {[%emt 0:00:30]} 42. Be3 {[%emt 0:06:30]} Ke6 {[%emt 0:01:30]} 43. Rd2 {[%emt 0:01:30]} d5 {[%emt 0:01:30]} 44. Ra2 {[%emt 0:01:30]} Kf7 {[%emt 0:01:30]} 45. Ra7+ {[%emt 0:04:30]} Kg6 {[%emt 0:01:30]} 46. Rd7 {[%emt 0:00:30]} Rc3 {[%emt 0:00:30]} 47. Kf2 {[%emt 0:00:30]} Bc5 {[%emt 0:02:30]} 48. Bxc5 {[%emt 0:00:30]} Rxc5 {[%emt 0:00:30]} 49. Ke3 {[%emt 0:00:30]} d4+ {[%emt 0:00:00]} 50. Ke4 {[%emt 0:00:30]} Rc2 {[%emt 0:00:00]} 51. Kf3 {[%emt 0:01:30]} Rc8 {[%emt 0:00:30]} 52. g3 {[%emt 0:03:30]} Rf8 {[%emt 0:00:30]} 53. Rd6 {[%emt 0:00:30]} Rf7 {[%emt 0:00:30]} 54. Ke4 {[%emt 0:00:30]} Re7 {[%emt 0:01:30]} 55. Rb6 {[%emt 0:01:30]} Kg5 {[%emt 0:01:30]} 56. Rb3 {[%emt 0:01:30]} Kxg4 {[%emt 0:00:30]} 57. Rf3 {[%emt 0:00:30]} Rc7 {[%emt 0:03:30]} 58. Rb3 {[%emt 0:00:30]} Kg5 {[%emt 0:01:30]} 59. Ra3 {[%emt 0:02:30]} Rc3 {[%emt 0:01:30]} 60. Ra7 {[%emt 0:02:30]} g6 {[%emt 0:00:00]} 61. Rd7 {[%emt 0:00:30]} Rxg3 {[%emt 0:00:00]} 62. Rd6 {[%emt 0:00:30]} Re3+ {[%emt 0:01:30]} 63. Kd5 {[%emt 0:00:00]} d3 {[%emt 0:01:30]} 64. Kc4 {[%emt 0:00:00]} Re4+ {[%emt 0:01:30]} 65. Kc3 {[%emt 0:00:30]} Rd4 {[%emt 0:00:30]} 0-1

[Event "FIDE World Cadets GU10 2022"]
[Site "Batumi"]
[Date "2022.09.17"]
[Round "2.30"]
[White "Pehlivanova, Aleksandra"]
[Black "Aadya Ranganath"]
[Result "0-1"]
[ECO "A48"]
[WhiteElo "1406"]
[BlackElo "1184"]
[Annotator "NA COMBH"]
[PlyCount "118"]
[EventDate "2022.09.16"]
[EventType "swiss"]
[EventCountry "GEO"]
[SourceTitle "playchess.com"]
[Source "ChessBase"]
[SourceQuality "1"]
[TimeControl "5400+30"]

1. d4 {[%emt 0:01:00]} Nf6 {[%emt 0:01:00]} 2. Bf4 {[%emt 0:00:30]} g6 {[%emt 0:00:30]} 3. e3 {[%emt 0:00:30]} Bg7 {[%emt 0:00:30]} 4. Nd2 {[%emt 0:00:30]} O-O {[%emt 0:00:00]} 5. Ngf3 {[%emt 0:00:00]} d6 {[%emt 0:00:00]} 6. h3 {[%emt 0:01:00]} c5 {[%emt 0:00:30]} 7. c3 {[%emt 0:00:30]} b6 {[%emt 0:01:30]} 8. Be2 {[%emt 0:06:30]} Bb7 {[%emt 0:01:30]} 9. Qc2 {[%emt 0:08:30]} Nbd7 {[%emt 0:04:30]} 10. O-O {[%emt 0:02:30]} Rc8 {[%emt 0:14:30]} 11. Qb3 {[%emt 0:04:30]} cxd4 {[%emt 0:12:30]} 12. exd4 {[%emt 0:01:30]} e5 {[%emt 0:06:30]} 13. Bh2 {[%emt 0:04:30]} e4 {[%emt 0:05:30]} 14. Ne1 {[%emt 0:05:30]} d5 {[%emt 0:03:30]} 15. Nc2 {[%emt 0:03:30]} Qe7 {[%emt 0:04:30]} 16. Ne3 {[%emt 0:02:30]} Bh6 {[%emt 0:07:30]} 17. c4 {[%emt 0:11:30]} Qe6 {[%emt 0:06:30]} 18. c5 {[%emt 0:06:30]} bxc5 {[%emt 0:02:30]} 19. Qxb7 {[%emt 0:07:30]} cxd4 {[%emt 0:02:30]} 20. Nxd5 {[%emt 0:08:30]} Qxd5 {[%emt 0:07:21]} 21. Qxd5 {[%emt 0:01:30]} Nxd5 {[%emt 0:00:12]} 22. Nxe4 {[%emt 0:01:30]} Rc2 {[%emt 0:01:53]} 23. Bb5 {[%emt 0:01:30]} N7b6 {[%emt 0:02:16]} 24. b3 {[%emt 0:00:57]} Bg7 {[%emt 0:01:03]} 25. Bd3 {[%emt 0:01:18]} Rcc8 {[%emt 0:01:52]} 26. Bd6 {[%emt 0:01:04]} Rfe8 {[%emt 0:01:18]} 27. Rfe1 {[%emt 0:02:57]} Rcd8 {[%emt 0:01:56]} 28. Ba3 {[%emt 0:02:27]} Nf4 {[%emt 0:00:45]} 29. Bb5 {[%emt 0:03:59]} Re6 {[%emt 0:03:24]} 30. g3 {[%emt 0:02:49]} d3 {[%emt 0:01:55]} 31. Rad1 {[%emt 0:01:14]} d2 {[%emt 0:01:03]} 32. Re3 {[%emt 0:03:02]} Nxh3+ {[%emt 0:00:54]} 33. Kg2 {[%emt 0:00:26]} Nxf2 {[%emt 0:00:11]} 34. Kxf2 {[%emt 0:01:24]} Bd4 {[%emt 0:00:23]} 35. Bc5 {[%emt 0:00:59]} Bxe3+ {[%emt 0:00:35]} 36. Bxe3 {[%emt 0:02:06]} Rxe4 {[%emt 0:00:26]} 37. Bxd2 {[%emt 0:00:25]} Red4 {[%emt 0:00:44]} 38. Ke3 {[%emt 0:00:04]} R4d6 {[%emt 0:00:51]} 39. Be2 {[%emt 0:00:57]} Nd5+ {[%emt 0:00:30]} 40. Kf2 {[%emt 0:00:00]} Nc3 {[%emt 0:00:59]} 41. Bxc3 {[%emt 0:00:14]} Rxd1 {[%emt 0:00:30]} 42. Bxd1 {[%emt 0:00:00]} Rxd1 {[%emt 0:00:12]} 43. Ke3 {[%emt 0:00:09]} f5 {[%emt 0:00:01]} 44. Bd4 {[%emt 0:00:22]} a5 {[%emt 0:00:17]} 45. Bc3 {[%emt 0:00:21]} Rd5 {[%emt 0:01:05]} 46. a3 {[%emt 0:00:33]} Kf7 {[%emt 0:00:27]} 47. b4 {[%emt 0:00:44]} axb4 {[%emt 0:00:30]} 48. axb4 {[%emt 0:00:30]} Ke6 {[%emt 0:00:00]} 49. Bd4 {[%emt 0:00:00]} g5 {[%emt 0:00:40]} 50. Kd3 {[%emt 0:00:04]} h5 {[%emt 0:00:32]} 51. Kc4 {[%emt 0:00:00]} h4 {[%emt 0:01:16]} 52. gxh4 {[%emt 0:00:26]} gxh4 {[%emt 0:00:30]} 53. b5 {[%emt 0:00:07]} h3 {[%emt 0:00:00]} 54. Bg1 {[%emt 0:00:17]} Rd2 {[%emt 0:00:57]} 55. b6 {[%emt 0:01:06]} h2 {[%emt 0:00:30]} 56. b7 {[%emt 0:00:30]} hxg1=Q {[%emt 0:00:04]} 57. b8=Q {[%emt 0:00:00]} Qc1+ {[%emt 0:00:30]} 58. Kb3 {[%emt 0:00:18]} Rb2+ {[%emt 0:00:30]} 59. Ka3 {[%emt 0:00:30]} Qa1# {[%emt 0:00:00]} 0-1

[Event "FIDE World Cadets GU10 2022"]
[Site "Batumi"]
[Date "2022.09.17"]
[Round "2.32"]
[White "Rajlic, Irina"]
[Black "Bakhshizada, Asnad"]
[Result "1/2-1/2"]
[ECO "C02"]
[WhiteElo "1397"]
[BlackElo "1170"]
[Annotator "NA COMBH"]
[PlyCount "98"]
[EventDate "2022.09.16"]
[EventType "swiss"]
[EventCountry "GEO"]
[SourceTitle "playchess.com"]
[Source "ChessBase"]
[SourceQuality "1"]
[TimeControl "5400+30"]

1. e4 {[%emt 0:01:00]} e6 {[%emt 0:01:00]} 2. d4 {[%emt 0:00:30]} d5 {[%emt 0:00:30]} 3. e5 {[%emt 0:00:30]} c5 {[%emt 0:00:30]} 4. c3 {[%emt 0:00:30]} Nc6 {[%emt 0:00:30]} 5. Nf3 {[%emt 0:00:30]} Qb6 {[%emt 0:00:30]} 6. a3 {[%emt 0:00:00]} cxd4 {[%emt 0:00:00]} 7. cxd4 {[%emt 0:00:00]} Nge7 {[%emt 0:00:00]} 8. b4 {[%emt 0:00:30]} Nf5 {[%emt 0:01:30]} 9. Bb2 {[%emt 0:00:30]} a6 {[%emt 0:00:30]} 10. Bd3 {[%emt 0:03:30]} Nh6 {[%emt 0:02:30]} 11. O-O {[%emt 0:05:30]} Be7 {[%emt 0:01:30]} 12. Nc3 {[%emt 0:01:30]} Bd7 {[%emt 0:00:30]} 13. Na4 {[%emt 0:03:30]} Qd8 {[%emt 0:00:30]} 14. Nc3 {[%emt 0:11:30]} b5 {[%emt 0:02:30]} 15. Qd2 {[%emt 0:09:30]} Qb6 {[%emt 0:01:30]} 16. Ne2 {[%emt 0:08:30]} a5 {[%emt 0:01:30]} 17. Bc3 {[%emt 0:03:30]} axb4 {[%emt 0:01:30]} 18. Bxb4 {[%emt 0:03:30]} Nxb4 {[%emt 0:00:30]} 19. axb4 {[%emt 0:00:00]} Rc8 {[%emt 0:01:30]} 20. Rfc1 {[%emt 0:02:00]} O-O {[%emt 0:00:30]} 21. Ng3 {[%emt 0:02:30]} Rxc1+ {[%emt 0:01:30]} 22. Rxc1 {[%emt 0:00:00]} Nf5 {[%emt 0:00:30]} 23. Nh5 {[%emt 0:06:00]} Ra8 {[%emt 0:03:30]} 24. Nf4 {[%emt 0:02:30]} Qb7 {[%emt 0:06:30]} 25. h3 {[%emt 0:08:30]} Ra4 {[%emt 0:01:30]} 26. Rb1 {[%emt 0:00:30]} Qa8 {[%emt 0:04:30]} 27. Rb2 {[%emt 0:04:30]} g6 {[%emt 0:01:30]} 28. Qe2 {[%emt 0:02:30]} Qc6 {[%emt 0:03:30]} 29. Qd2 {[%emt 0:01:56]} Ra3 {[%emt 0:02:30]} 30. Rc2 {[%emt 0:03:18]} Qb7 {[%emt 0:02:30]} 31. Bxf5 {[%emt 0:01:35]} exf5 {[%emt 0:01:30]} 32. Nd3 {[%emt 0:00:31]} Kg7 {[%emt 0:02:30]} 33. Nc5 {[%emt 0:00:59]} Qa7 {[%emt 0:02:30]} 34. Nxd7 {[%emt 0:01:54]} Qxd7 {[%emt 0:00:30]} 35. Ne1 {[%emt 0:02:11]} Ra1 {[%emt 0:00:30]} 36. Kh2 {[%emt 0:00:46]} h6 {[%emt 0:01:30]} 37. Nd3 {[%emt 0:01:24]} Bg5 {[%emt 0:01:30]} 38. Qc3 {[%emt 0:03:18]} Rd1 {[%emt 0:02:30]} 39. f4 {[%emt 0:05:32]} Bh4 {[%emt 0:00:30]} 40. g3 {[%emt 0:01:14]} Be7 {[%emt 0:00:30]} 41. Nc5 {[%emt 0:01:48]} Qa7 {[%emt 0:00:30]} 42. Nb3 {[%emt 0:00:36]} Qa3 {[%emt 0:00:30]} 43. Nc5 {[%emt 0:00:53]} Qa7 {[%emt 0:01:30]} 44. Rd2 {[%emt 0:00:30]} Ra1 {[%emt 0:00:00]} 45. Qc2 {[%emt 0:00:28]} Ra3 {[%emt 0:02:00]} 46. Qb2 {[%emt 0:00:31]} Re3 {[%emt 0:02:30]} 47. Rd3 {[%emt 0:00:29]} Re1 {[%emt 0:03:30]} 48. Ra3 {[%emt 0:00:34]} Re2+ {[%emt 0:04:30]} 49. Qxe2 {[%emt 0:00:26]} Bf8 {[%emt 0:03:30]} 1/2-1/2

[Event "FIDE World Cadets GU10 2022"]
[Site "Batumi"]
[Date "2022.09.17"]
[Round "2.33"]
[White "Baruch, Amit"]
[Black "Sreekarthika Velmurugan"]
[Result "0-1"]
[ECO "B43"]
[WhiteElo "1153"]
[BlackElo "1380"]
[Annotator "NA COMBH"]
[PlyCount "121"]
[EventDate "2022.09.16"]
[EventType "swiss"]
[EventCountry "GEO"]
[SourceTitle "playchess.com"]
[Source "ChessBase"]
[SourceQuality "1"]
[TimeControl "5400+30"]

1. e4 {[%emt 0:01:00]} c5 {[%emt 0:02:00]} 2. Nf3 {[%emt 0:00:30]} e6 {[%emt 0:00:00]} 3. d4 {[%emt 0:00:30]} cxd4 {[%emt 0:00:00]} 4. Nxd4 {[%emt 0:00:30]} a6 {[%emt 0:00:30]} 5. Nc3 {[%emt 0:00:30]} b5 {[%emt 0:00:00]} 6. a3 {[%emt 0:00:00]} Bb7 {[%emt 0:00:00]} 7. g3 {[%emt 0:01:00]} Nc6 {[%emt 0:03:30]} 8. Bg2 {[%emt 0:01:30]} Bc5 {[%emt 0:05:30]} 9. Be3 {[%emt 0:01:30]} Nxd4 {[%emt 0:00:30]} 10. Bxd4 {[%emt 0:00:00]} Bxd4 {[%emt 0:00:30]} 11. Qxd4 {[%emt 0:00:00]} Nf6 {[%emt 0:00:30]} 12. O-O {[%emt 0:02:30]} O-O {[%emt 0:02:30]} 13. Rad1 {[%emt 0:01:30]} Rc8 {[%emt 0:03:30]} 14. e5 {[%emt 0:03:30]} Bxg2 {[%emt 0:01:30]} 15. Kxg2 {[%emt 0:00:30]} Rc4 {[%emt 0:00:30]} 16. Qd6 {[%emt 0:01:30]} Qa8+ {[%emt 0:04:30]} 17. Kg1 {[%emt 0:00:30]} Ne4 {[%emt 0:00:30]} 18. Nxe4 {[%emt 0:01:30]} Rxe4 {[%emt 0:01:30]} 19. Rd2 {[%emt 0:07:30]} h6 {[%emt 0:03:30]} 20. Rfd1 {[%emt 0:00:30]} Rd8 {[%emt 0:04:30]} 21. Qc5 {[%emt 0:03:30]} Qb8 {[%emt 0:03:30]} 22. Rd6 {[%emt 0:03:30]} Rc8 {[%emt 0:01:30]} 23. Qb6 {[%emt 0:01:30]} Qxb6 {[%emt 0:00:30]} 24. Rxb6 {[%emt 0:00:30]} Rxc2 {[%emt 0:00:30]} 25. b4 {[%emt 0:02:30]} Rxe5 {[%emt 0:01:30]} 26. Rxa6 {[%emt 0:00:30]} Rc7 {[%emt 0:09:30]} 27. Ra5 {[%emt 0:01:30]} Rf5 {[%emt 0:02:30]} 28. a4 {[%emt 0:00:30]} bxa4 {[%emt 0:00:30]} 29. Rxa4 {[%emt 0:02:30]} Kf8 {[%emt 0:00:30]} 30. Ra8+ {[%emt 0:01:30]} Ke7 {[%emt 0:00:30]} 31. Rb8 {[%emt 0:00:30]} Rf3 {[%emt 0:02:30]} 32. b5 {[%emt 0:01:30]} Rb3 {[%emt 0:00:30]} 33. b6 {[%emt 0:01:30]} Rc6 {[%emt 0:00:30]} 34. Rb7 {[%emt 0:04:30]} Rd6 {[%emt 0:02:30]} 35. Rxd6 {[%emt 0:03:30]} Kxd6 {[%emt 0:00:30]} 36. Rb8 {[%emt 0:00:00]} Ke7 {[%emt 0:01:30]} 37. Kf1 {[%emt 0:00:00]} d5 {[%emt 0:01:30]} 38. Ke2 {[%emt 0:01:30]} e5 {[%emt 0:01:30]} 39. Kd2 {[%emt 0:00:30]} e4 {[%emt 0:00:30]} 40. Kc2 {[%emt 0:01:30]} Rb5 {[%emt 0:00:30]} 41. Kc3 {[%emt 0:00:30]} f5 {[%emt 0:01:30]} 42. Kd4 {[%emt 0:00:30]} g5 {[%emt 0:01:30]} 43. Ke5 {[%emt 0:02:30]} Kd7 {[%emt 0:04:30]} 44. Kxf5 {[%emt 0:00:30]} Kd6 {[%emt 0:02:30]} 45. Rd8+ {[%emt 0:02:30]} Kc5 {[%emt 0:01:30]} 46. Ke5 {[%emt 0:01:30]} Kc4 {[%emt 0:00:30]} 47. b7 {[%emt 0:01:30]} Rxb7 {[%emt 0:00:30]} 48. Rxd5 {[%emt 0:01:30]} Re7+ {[%emt 0:01:30]} 49. Kd6 {[%emt 0:00:30]} Rd7+ {[%emt 0:02:30]} 50. Kxd7 {[%emt 0:00:30]} Kxd5 {[%emt 0:00:30]} 51. Ke7 {[%emt 0:00:30]} Ke5 {[%emt 0:00:00]} 52. Kf7 {[%emt 0:01:30]} Kf5 {[%emt 0:00:00]} 53. Kg7 {[%emt 0:00:30]} h5 {[%emt 0:00:30]} 54. Kf7 {[%emt 0:01:30]} h4 {[%emt 0:02:30]} 55. Kg7 {[%emt 0:02:30]} hxg3 {[%emt 0:00:30]} 56. hxg3 {[%emt 0:00:00]} Kg4 {[%emt 0:00:00]} 57. Kf6 {[%emt 0:01:00]} Kf3 {[%emt 0:00:00]} 58. Kf5 {[%emt 0:01:30]} Kxf2 {[%emt 0:00:30]} 59. Kxe4 {[%emt 0:00:30]} Kxg3 {[%emt 0:00:30]} 60. Ke3 {[%emt 0:00:30]} g4 {[%emt 0:00:00]} 61. Kd4 {[%emt 0:01:30]} 0-1

[Event "FIDE World Cadets GU10 2022"]
[Site "Batumi"]
[Date "2022.09.17"]
[Round "2.34"]
[White "Qian, Ashley"]
[Black "Gulishyan, Eseniya"]
[Result "1-0"]
[ECO "B01"]
[WhiteElo "1350"]
[BlackElo "1138"]
[Annotator "NA COMBH"]
[PlyCount "127"]
[EventDate "2022.09.16"]
[EventType "swiss"]
[EventCountry "GEO"]
[SourceTitle "playchess.com"]
[Source "ChessBase"]
[SourceQuality "1"]
[TimeControl "5400+30"]

1. e4 {[%emt 0:01:00]} d5 {[%emt 0:01:00]} 2. exd5 {[%emt 0:00:30]} Qxd5 {[%emt 0:00:30]} 3. Nc3 {[%emt 0:00:30]} Qd6 {[%emt 0:00:00]} 4. d4 {[%emt 0:00:30]} c6 {[%emt 0:00:00]} 5. Nf3 {[%emt 0:00:30]} Nf6 {[%emt 0:00:00]} 6. Be2 {[%emt 0:03:30]} Bg4 {[%emt 0:01:00]} 7. h3 {[%emt 0:00:30]} Bh5 {[%emt 0:00:00]} 8. O-O {[%emt 0:00:30]} Nbd7 {[%emt 0:00:00]} 9. Be3 {[%emt 0:04:30]} e6 {[%emt 0:00:30]} 10. Qd2 {[%emt 0:00:30]} Qc7 {[%emt 0:00:00]} 11. Bf4 {[%emt 0:04:30]} Bd6 {[%emt 0:00:00]} 12. Bxd6 {[%emt 0:01:30]} Qxd6 {[%emt 0:00:00]} 13. Rfe1 {[%emt 0:01:30]} O-O {[%emt 0:01:00]} 14. Rad1 {[%emt 0:01:30]} Nd5 {[%emt 0:00:30]} 15. Nxd5 {[%emt 0:01:30]} exd5 {[%emt 0:00:30]} 16. Ne5 {[%emt 0:04:30]} Bxe2 {[%emt 0:00:30]} 17. Rxe2 {[%emt 0:00:30]} Rfe8 {[%emt 0:01:30]} 18. Rde1 {[%emt 0:01:30]} Re7 {[%emt 0:07:30]} 19. Nxd7 {[%emt 0:02:30]} Rxe2 {[%emt 0:01:30]} 20. Nf6+ {[%emt 0:01:30]} Qxf6 {[%emt 0:00:30]} 21. Qxe2 {[%emt 0:00:30]} h6 {[%emt 0:01:30]} 22. c3 {[%emt 0:00:30]} Kf8 {[%emt 0:06:30]} 23. g3 {[%emt 0:05:30]} Qd6 {[%emt 0:04:30]} 24. Qg4 {[%emt 0:05:30]} Rd8 {[%emt 0:01:30]} 25. Re3 {[%emt 0:00:30]} Kg8 {[%emt 0:03:30]} 26. Kg2 {[%emt 0:00:30]} Kf8 {[%emt 0:00:30]} 27. Qe2 {[%emt 0:01:30]} Qd7 {[%emt 0:01:30]} 28. f4 {[%emt 0:02:30]} Re8 {[%emt 0:01:30]} 29. Rxe8+ {[%emt 0:01:30]} Qxe8 {[%emt 0:00:30]} 30. Qxe8+ {[%emt 0:00:30]} Kxe8 {[%emt 0:00:30]} 31. Kf3 {[%emt 0:01:30]} Ke7 {[%emt 0:00:00]} 32. b3 {[%emt 0:01:30]} Kd6 {[%emt 0:01:00]} 33. c4 {[%emt 0:01:30]} b6 {[%emt 0:00:30]} 34. g4 {[%emt 0:00:30]} g6 {[%emt 0:01:30]} 35. h4 {[%emt 0:01:30]} f6 {[%emt 0:02:30]} 36. Ke3 {[%emt 0:03:30]} a6 {[%emt 0:04:30]} 37. Kd3 {[%emt 0:05:30]} a5 {[%emt 0:01:30]} 38. a4 {[%emt 0:03:30]} c5 {[%emt 0:01:30]} 39. cxd5 {[%emt 0:04:30]} Kxd5 {[%emt 0:00:30]} 40. dxc5 {[%emt 0:00:00]} Kxc5 {[%emt 0:00:30]} 41. Ke4 {[%emt 0:06:00]} Kb4 {[%emt 0:00:30]} 42. Kd4 {[%emt 0:01:30]} Kxb3 {[%emt 0:00:30]} 43. g5 {[%emt 0:00:30]} hxg5 {[%emt 0:00:30]} 44. f5 {[%emt 0:01:30]} gxf5 {[%emt 0:05:30]} 45. h5 {[%emt 0:00:30]} g4 {[%emt 0:00:30]} 46. Ke3 {[%emt 0:00:30]} g3 {[%emt 0:00:30]} 47. Kf3 {[%emt 0:00:30]} f4 {[%emt 0:00:00]} 48. h6 {[%emt 0:00:30]} f5 {[%emt 0:00:00]} 49. h7 {[%emt 0:01:30]} g2 {[%emt 0:00:30]} 50. Kxg2 {[%emt 0:00:30]} f3+ {[%emt 0:00:30]} 51. Kxf3 {[%emt 0:00:30]} f4 {[%emt 0:00:00]} 52. h8=Q {[%emt 0:00:30]} Kxa4 {[%emt 0:00:00]} 53. Qa1+ {[%emt 0:00:30]} Kb5 {[%emt 0:00:00]} 54. Kxf4 {[%emt 0:00:30]} Ka6 {[%emt 0:00:00]} 55. Ke5 {[%emt 0:00:00]} b5 {[%emt 0:00:30]} 56. Kd6 {[%emt 0:00:00]} a4 {[%emt 0:00:00]} 57. Kc5 {[%emt 0:00:30]} Kb7 {[%emt 0:00:00]} 58. Kxb5 {[%emt 0:00:30]} Kb8 {[%emt 0:00:30]} 59. Qxa4 {[%emt 0:00:00]} Kb7 {[%emt 0:00:00]} 60. Qc4 {[%emt 0:00:00]} Ka7 {[%emt 0:00:00]} 61. Qc6 {[%emt 0:00:30]} Kb8 {[%emt 0:00:30]} 62. Qd7 {[%emt 0:00:30]} Ka8 {[%emt 0:00:30]} 63. Kb6 {[%emt 0:00:30]} Kb8 {[%emt 0:00:00]} 64. Qb7# {[%emt 0:00:00]} 1-0